[Event "Titled Tuesday Blitz March 28 Early 2023"]
[White "Kaidanov, Gregory"]
[Black "Onslow, Alfie"]
[WhiteFideId "2008564"]
[BlackFideId "436976"]
[WhiteElo "2547"]
[BlackElo "2114"]
[Result "1-0"]
[Round "03"]
[TimeControl "180+2"]
[Date "2023.03.28"]
[WhiteClock "0:00:23"]
[BlackClock "0:00:02"]

1. Nf3 {[%clk 0:02:59]}  c5 {[%clk 0:02:58]} 2. c4 {[%clk 0:02:59]}  Nf6 {[%clk 0:02:57]} 3. Nc3 {[%clk 0:02:59]}  Nc6 {[%clk 0:02:57]} 4. d4 {[%clk 0:02:59]}  cxd4 {[%clk 0:02:58]} 5. Nxd4 {[%clk 0:02:59]}  e6 {[%clk 0:02:58]} 6. g3 {[%clk 0:03:00]}  Qb6 {[%clk 0:02:58]} 7. Nb3 {[%clk 0:03:00]}  Ng4 {[%clk 0:02:57]} 8. e3 {[%clk 0:02:56]}  Nge5 {[%clk 0:02:55]} 9. f4 {[%clk 0:02:51]}  Ng6 {[%clk 0:02:54]} 10. Bg2 {[%clk 0:02:46]}  a5 {[%clk 0:02:47]} 11. O-O {[%clk 0:02:38]}  a4 {[%clk 0:02:45]} 12. Nd4 {[%clk 0:02:38]}  a3 {[%clk 0:02:37]} 13. b3 {[%clk 0:02:33]}  Bc5 {[%clk 0:02:31]} 14. Ncb5 {[%clk 0:02:19]}  O-O {[%clk 0:02:14]} 15. Kh1 {[%clk 0:02:19]}  d5 {[%clk 0:02:09]} 16. cxd5 {[%clk 0:02:03]}  exd5 {[%clk 0:01:58]} 17. Re1 {[%clk 0:01:59]}  Re8 {[%clk 0:01:42]} 18. Bd2 {[%clk 0:01:55]}  Nxd4 {[%clk 0:01:40]} 19. exd4 {[%clk 0:01:47]}  Rxe1+ {[%clk 0:00:55]} 20. Qxe1 {[%clk 0:01:48]}  Qxb5 {[%clk 0:00:55]} 21. dxc5 {[%clk 0:01:48]}  Bf5 {[%clk 0:00:46]} 22. Rc1 {[%clk 0:01:33]}  Re8 {[%clk 0:00:45]} 23. Qf1 {[%clk 0:01:25]}  Bd3 {[%clk 0:00:43]} 24. Qg1 {[%clk 0:01:09]}  Re2 {[%clk 0:00:39]} 25. Bc3 {[%clk 0:00:59]}  Rxg2 {[%clk 0:00:22]} 26. Kxg2 {[%clk 0:00:58]}  Be4+ {[%clk 0:00:22]} 27. Kf2 {[%clk 0:00:58]}  Qd3 {[%clk 0:00:22]} 28. Qd1 {[%clk 0:00:58]}  Qb5 {[%clk 0:00:13]} 29. Qd4 {[%clk 0:00:54]}  f6 {[%clk 0:00:10]} 30. Re1 {[%clk 0:00:53]}  Ne7 {[%clk 0:00:10]} 31. Kg1 {[%clk 0:00:26]}  Nf5 {[%clk 0:00:08]} 32. Qf2 {[%clk 0:00:26]}  Qd3 {[%clk 0:00:07]} 33. Ba1 {[%clk 0:00:22]}  h5 {[%clk 0:00:05]} 34. Qe2 {[%clk 0:00:20]}  Qxe2 {[%clk 0:00:01]} 35. Rxe2 {[%clk 0:00:20]}  h4 {[%clk 0:00:01]} 36. Kf2 {[%clk 0:00:20]}  hxg3+ {[%clk 0:00:01]} 37. hxg3 {[%clk 0:00:21]}  Nh6 {[%clk 0:00:02]} 38. Ke3 {[%clk 0:00:21]}  Ng4+ {[%clk 0:00:02]} 39. Kd4 {[%clk 0:00:21]}  Kf7 {[%clk 0:00:03]} 40. b4 {[%clk 0:00:20]}  Ke6 {[%clk 0:00:03]} 41. b5 {[%clk 0:00:20]}  f5 {[%clk 0:00:02]} 42. Re1 {[%clk 0:00:21]}  Nf6 {[%clk 0:00:02]} 43. Rc1 {[%clk 0:00:20]}  Kd7 {[%clk 0:00:02]} 44. c6+ {[%clk 0:00:21]}  bxc6 {[%clk 0:00:02]} 45. bxc6+ {[%clk 0:00:21]}  Kc7 {[%clk 0:00:03]} 46. Kc5 {[%clk 0:00:22]}  Bd3 {[%clk 0:00:02]} 47. Be5+ {[%clk 0:00:22]}  Kc8 {[%clk 0:00:02]} 48. Kb6 {[%clk 0:00:23]}  Ne4 {[%clk 0:00:02]} 49. Rh1 {[%clk 0:00:23]} 1-0


[Site "https://www.chess.com"]

[Event "Titled Tuesday Blitz March 28 Early 2023"]
[White "Derjabin, Ilja"]
[Black "Wilson, Elvin"]
[WhiteFideId "14104768"]
[BlackFideId "2014874"]
[WhiteElo "2309"]
[BlackElo "2292"]
[Result "1-0"]
[Round "03"]
[TimeControl "180+2"]
[Date "2023.03.28"]
[WhiteClock "0:00:04"]
[BlackClock "0:00:01"]

1. d4 {[%clk 0:03:00]}  Nf6 {[%clk 0:02:54]} 2. c4 {[%clk 0:02:59]}  e6 {[%clk 0:02:53]} 3. Nc3 {[%clk 0:03:00]}  Bb4 {[%clk 0:02:52]} 4. a3 {[%clk 0:03:00]}  Bxc3+ {[%clk 0:02:51]} 5. bxc3 {[%clk 0:03:00]}  Nc6 {[%clk 0:02:49]} 6. f3 {[%clk 0:03:00]}  b6 {[%clk 0:02:36]} 7. e4 {[%clk 0:02:59]}  Na5 {[%clk 0:02:36]} 8. e5 {[%clk 0:02:57]}  Ng8 {[%clk 0:02:36]} 9. Nh3 {[%clk 0:02:56]}  Ba6 {[%clk 0:02:36]} 10. Qa4 {[%clk 0:02:55]}  Qc8 {[%clk 0:02:29]} 11. Bd3 {[%clk 0:02:47]}  Ne7 {[%clk 0:02:21]} 12. O-O {[%clk 0:02:42]}  Qb7 {[%clk 0:01:39]} 13. Be4 {[%clk 0:02:31]}  c6 {[%clk 0:01:38]} 14. Bd3 {[%clk 0:02:23]}  Nxc4 {[%clk 0:01:38]} 15. Bxc4 {[%clk 0:02:21]}  b5 {[%clk 0:01:38]} 16. Qc2 {[%clk 0:02:18]}  bxc4 {[%clk 0:01:37]} 17. Rb1 {[%clk 0:02:16]}  Qc7 {[%clk 0:01:36]} 18. Ng5 {[%clk 0:02:15]}  h6 {[%clk 0:01:29]} 19. Ne4 {[%clk 0:02:14]}  O-O {[%clk 0:01:29]} 20. a4 {[%clk 0:02:05]}  Nd5 {[%clk 0:01:20]} 21. Nc5 {[%clk 0:02:03]}  Bc8 {[%clk 0:01:06]} 22. f4 {[%clk 0:01:38]}  f6 {[%clk 0:00:51]} 23. Ne4 {[%clk 0:01:26]}  fxe5 {[%clk 0:00:41]} 24. fxe5 {[%clk 0:01:24]}  Rxf1+ {[%clk 0:00:40]} 25. Kxf1 {[%clk 0:01:24]}  Rb8 {[%clk 0:00:36]} 26. Nd6 {[%clk 0:01:12]}  Ba6 {[%clk 0:00:26]} 27. Bxh6 {[%clk 0:01:00]}  Qd8 {[%clk 0:00:16]} 28. g3 {[%clk 0:00:19]}  Rxb1+ {[%clk 0:00:11]} 29. Qxb1 {[%clk 0:00:20]}  Qf8+ {[%clk 0:00:11]} 30. Kg2 {[%clk 0:00:20]}  gxh6 {[%clk 0:00:12]} 31. Qg6+ {[%clk 0:00:20]}  Qg7 {[%clk 0:00:12]} 32. Qe8+ {[%clk 0:00:15]}  Kh7 {[%clk 0:00:12]} 33. Qh5 {[%clk 0:00:15]}  Ne3+ {[%clk 0:00:08]} 34. Kf3 {[%clk 0:00:12]}  Nd5 {[%clk 0:00:04]} 35. Ne8 {[%clk 0:00:05]}  Qg6 {[%clk 0:00:04]} 36. Qxg6+ {[%clk 0:00:02]}  Kxg6 {[%clk 0:00:04]} 37. g4 {[%clk 0:00:02]}  Nxc3 {[%clk 0:00:04]} 38. h4 {[%clk 0:00:03]}  Nxa4 {[%clk 0:00:04]} 39. h5+ {[%clk 0:00:03]}  Kf7 {[%clk 0:00:02]} 40. Nf6 {[%clk 0:00:03]}  Nb6 {[%clk 0:00:01]} 41. g5 {[%clk 0:00:03]}  hxg5 {[%clk 0:00:01]} 42. Kg4 {[%clk 0:00:03]}  Nd5 {[%clk 0:00:01]} 43. h6 {[%clk 0:00:03]}  Nxf6+ {[%clk 0:00:01]} 44. Kxg5 {[%clk 0:00:04]} 1-0


[Site "https://www.chess.com"]

[Event "Titled Tuesday Blitz March 28 Early 2023"]
[White "Bogaudinov, Rushan"]
[Black "Drori, Saar"]
[WhiteFideId "4129288"]
[BlackFideId "2812444"]
[WhiteElo "1949"]
[BlackElo "2322"]
[Result "0-1"]
[Round "03"]
[TimeControl "180+2"]
[Date "2023.03.28"]
[WhiteClock "0:00:03"]
[BlackClock "0:00:05"]

1. e4 {[%clk 0:02:59]}  c5 {[%clk 0:02:57]} 2. Nf3 {[%clk 0:02:55]}  d6 {[%clk 0:02:56]} 3. Bc4 {[%clk 0:02:50]}  Nf6 {[%clk 0:02:54]} 4. d3 {[%clk 0:02:50]}  g6 {[%clk 0:02:52]} 5. O-O {[%clk 0:02:50]}  Bg7 {[%clk 0:02:50]} 6. Nc3 {[%clk 0:02:48]}  O-O {[%clk 0:02:47]} 7. Bg5 {[%clk 0:02:48]}  Nc6 {[%clk 0:02:46]} 8. h3 {[%clk 0:02:45]}  a6 {[%clk 0:02:39]} 9. a4 {[%clk 0:02:45]}  Rb8 {[%clk 0:02:39]} 10. Re1 {[%clk 0:02:43]}  Nd7 {[%clk 0:02:38]} 11. Rb1 {[%clk 0:02:36]}  Nd4 {[%clk 0:02:32]} 12. Nd5 {[%clk 0:02:31]}  Nc6 {[%clk 0:02:25]} 13. c3 {[%clk 0:02:24]}  h6 {[%clk 0:02:23]} 14. Bh4 {[%clk 0:02:22]}  b5 {[%clk 0:02:21]} 15. axb5 {[%clk 0:02:20]}  axb5 {[%clk 0:02:22]} 16. Bb3 {[%clk 0:02:16]}  Nb6 {[%clk 0:02:18]} 17. Nxb6 {[%clk 0:02:08]}  Qxb6 {[%clk 0:02:11]} 18. Qe2 {[%clk 0:01:50]}  b4 {[%clk 0:02:09]} 19. Bd5 {[%clk 0:01:44]}  Ba6 {[%clk 0:01:49]} 20. Bxc6 {[%clk 0:01:41]}  Qxc6 {[%clk 0:01:48]} 21. Qd2 {[%clk 0:01:32]}  Rfe8 {[%clk 0:01:30]} 22. Bg3 {[%clk 0:01:20]}  Rb7 {[%clk 0:01:21]} 23. d4 {[%clk 0:00:55]}  bxc3 {[%clk 0:01:20]} 24. bxc3 {[%clk 0:00:55]}  Rxb1 {[%clk 0:01:19]} 25. Rxb1 {[%clk 0:00:55]}  Qxe4 {[%clk 0:01:14]} 26. Re1 {[%clk 0:00:54]}  Qd5 {[%clk 0:01:13]} 27. Qf4 {[%clk 0:00:39]}  Bb7 {[%clk 0:01:00]} 28. h4 {[%clk 0:00:38]}  cxd4 {[%clk 0:00:59]} 29. cxd4 {[%clk 0:00:38]}  e5 {[%clk 0:00:52]} 30. dxe5 {[%clk 0:00:35]}  dxe5 {[%clk 0:00:53]} 31. Qd2 {[%clk 0:00:34]}  e4 {[%clk 0:00:42]} 32. Qxd5 {[%clk 0:00:34]}  Bxd5 {[%clk 0:00:43]} 33. Nh2 {[%clk 0:00:33]}  f5 {[%clk 0:00:32]} 34. Bf4 {[%clk 0:00:31]}  Kh7 {[%clk 0:00:31]} 35. g3 {[%clk 0:00:31]}  Bf6 {[%clk 0:00:26]} 36. Rd1 {[%clk 0:00:30]}  Be6 {[%clk 0:00:24]} 37. Nf1 {[%clk 0:00:26]}  g5 {[%clk 0:00:24]} 38. hxg5 {[%clk 0:00:26]}  hxg5 {[%clk 0:00:24]} 39. Be3 {[%clk 0:00:27]}  Kg6 {[%clk 0:00:24]} 40. Kg2 {[%clk 0:00:24]}  Be5 {[%clk 0:00:23]} 41. f4 {[%clk 0:00:17]}  exf3+ {[%clk 0:00:22]} 42. Kxf3 {[%clk 0:00:17]}  Rc8 {[%clk 0:00:20]} 43. Rc1 {[%clk 0:00:15]}  Bd5+ {[%clk 0:00:18]} 44. Kf2 {[%clk 0:00:15]}  Rb8 {[%clk 0:00:18]} 45. Rc5 {[%clk 0:00:14]}  Rb2+ {[%clk 0:00:18]} 46. Nd2 {[%clk 0:00:13]}  Bxg3+ {[%clk 0:00:10]} 47. Kxg3 {[%clk 0:00:12]}  f4+ {[%clk 0:00:11]} 48. Kf2 {[%clk 0:00:10]}  fxe3+ {[%clk 0:00:10]} 49. Kxe3 {[%clk 0:00:11]}  Be6 {[%clk 0:00:10]} 50. Ne4 {[%clk 0:00:10]}  g4 {[%clk 0:00:09]} 51. Kf4 {[%clk 0:00:09]}  Rb4 {[%clk 0:00:08]} 52. Rg5+ {[%clk 0:00:09]}  Kf7 {[%clk 0:00:08]} 53. Re5 {[%clk 0:00:08]}  Ke7 {[%clk 0:00:05]} 54. Kg3 {[%clk 0:00:08]}  Kd7 {[%clk 0:00:05]} 55. Nf6+ {[%clk 0:00:06]}  Kd6 {[%clk 0:00:04]} 56. Re4 {[%clk 0:00:06]}  Rb3+ {[%clk 0:00:05]} 57. Kf2 {[%clk 0:00:06]}  g3+ {[%clk 0:00:05]} 58. Kg2 {[%clk 0:00:05]}  Bc8 {[%clk 0:00:05]} 59. Rg4 {[%clk 0:00:03]}  Bb7+ {[%clk 0:00:06]} 60. Kg1 {[%clk 0:00:03]}  Rb1# {[%clk 0:00:05]} 0-1


[Site "https://www.chess.com"]

[Event "Titled Tuesday Blitz March 28 Early 2023"]
[White "Ruge, Edison"]
[Black "Vallejo Diaz, Javier"]
[WhiteFideId "4401000"]
[BlackFideId "2256398"]
[WhiteElo "2175"]
[BlackElo "2555"]
[Result "1-0"]
[Round "03"]
[TimeControl "180+2"]
[Date "2023.03.28"]
[WhiteClock "0:00:35"]
[BlackClock "0:00:17"]

1. e4 {[%clk 0:03:00]}  Nf6 {[%clk 0:02:56]} 2. Nc3 {[%clk 0:03:00]}  d5 {[%clk 0:02:55]} 3. Qe2 {[%clk 0:02:55]}  d4 {[%clk 0:02:48]} 4. Nb1 {[%clk 0:02:54]}  e5 {[%clk 0:02:48]} 5. d3 {[%clk 0:02:53]}  Nc6 {[%clk 0:02:47]} 6. g3 {[%clk 0:02:54]}  h5 {[%clk 0:02:46]} 7. h4 {[%clk 0:02:53]}  Be6 {[%clk 0:02:38]} 8. Bh3 {[%clk 0:02:52]}  Qd7 {[%clk 0:02:34]} 9. Bxe6 {[%clk 0:02:52]}  fxe6 {[%clk 0:02:30]} 10. a3 {[%clk 0:02:52]}  a5 {[%clk 0:02:28]} 11. Nf3 {[%clk 0:02:50]}  a4 {[%clk 0:02:21]} 12. Ng5 {[%clk 0:02:44]}  Bd6 {[%clk 0:02:15]} 13. Nd2 {[%clk 0:02:43]}  b5 {[%clk 0:02:14]} 14. Ndf3 {[%clk 0:02:33]}  Ne7 {[%clk 0:01:46]} 15. Bd2 {[%clk 0:02:30]}  c5 {[%clk 0:01:40]} 16. Nh2 {[%clk 0:02:27]}  Rc8 {[%clk 0:01:34]} 17. O-O {[%clk 0:02:20]}  Ng6 {[%clk 0:01:26]} 18. Qf3 {[%clk 0:02:12]}  Nf8 {[%clk 0:01:15]} 19. Qg2 {[%clk 0:02:12]}  Kd8 {[%clk 0:01:12]} 20. f4 {[%clk 0:02:08]}  exf4 {[%clk 0:01:07]} 21. gxf4 {[%clk 0:01:47]}  e5 {[%clk 0:01:07]} 22. fxe5 {[%clk 0:01:42]}  Bxe5 {[%clk 0:01:06]} 23. Rf5 {[%clk 0:01:38]}  Ng6 {[%clk 0:01:01]} 24. Nhf3 {[%clk 0:01:32]}  Re8 {[%clk 0:00:49]} 25. Ba5+ {[%clk 0:01:27]}  Bc7 {[%clk 0:00:47]} 26. Bxc7+ {[%clk 0:01:25]}  Rxc7 {[%clk 0:00:47]} 27. Rf1 {[%clk 0:01:16]}  Kc8 {[%clk 0:00:44]} 28. Qd2 {[%clk 0:01:10]}  Qd6 {[%clk 0:00:33]} 29. Qg2 {[%clk 0:00:49]}  Ng4 {[%clk 0:00:30]} 30. Qh3 {[%clk 0:00:46]}  Kb8 {[%clk 0:00:29]} 31. Nf7 {[%clk 0:00:42]}  Qe6 {[%clk 0:00:21]} 32. N3g5 {[%clk 0:00:42]}  Qd7 {[%clk 0:00:19]} 33. Qg3 {[%clk 0:00:42]}  Kb7 {[%clk 0:00:18]} 34. Nd6+ {[%clk 0:00:40]}  Ka6 {[%clk 0:00:17]} 35. Nxe8 {[%clk 0:00:40]}  Qxe8 {[%clk 0:00:18]} 36. Qxc7 {[%clk 0:00:39]}  Ne3 {[%clk 0:00:17]} 37. Rxc5 {[%clk 0:00:35]} 1-0


[Site "https://www.chess.com"]

[Event "Titled Tuesday Blitz March 28 Early 2023"]
[White "Schut, Han"]
[Black "Bilan, Danila"]
[WhiteFideId "1005561"]
[BlackFideId "24161918"]
[WhiteElo "2024"]
[BlackElo "2182"]
[Result "0-1"]
[Round "03"]
[TimeControl "180+2"]
[Date "2023.03.28"]
[WhiteClock "0:00:16"]
[BlackClock "0:00:06"]

1. e4 {[%clk 0:03:00]}  c6 {[%clk 0:02:52]} 2. d4 {[%clk 0:03:00]}  d5 {[%clk 0:02:52]} 3. exd5 {[%clk 0:02:59]}  cxd5 {[%clk 0:02:52]} 4. c4 {[%clk 0:03:00]}  Nf6 {[%clk 0:02:51]} 5. Nc3 {[%clk 0:03:00]}  Nc6 {[%clk 0:02:51]} 6. Nf3 {[%clk 0:03:00]}  Bg4 {[%clk 0:02:51]} 7. cxd5 {[%clk 0:03:01]}  Nxd5 {[%clk 0:02:50]} 8. Qb3 {[%clk 0:03:02]}  Bxf3 {[%clk 0:02:50]} 9. gxf3 {[%clk 0:03:01]}  e6 {[%clk 0:02:50]} 10. Qxb7 {[%clk 0:03:00]}  Nxd4 {[%clk 0:02:50]} 11. Bb5+ {[%clk 0:03:00]}  Nxb5 {[%clk 0:02:50]} 12. Qc6+ {[%clk 0:03:01]}  Ke7 {[%clk 0:02:49]} 13. Qxb5 {[%clk 0:02:57]}  Qd7 {[%clk 0:02:50]} 14. Bg5+ {[%clk 0:02:56]}  f6 {[%clk 0:02:49]} 15. Nxd5+ {[%clk 0:02:56]}  Qxd5 {[%clk 0:02:38]} 16. Qxd5 {[%clk 0:02:56]}  exd5 {[%clk 0:02:39]} 17. Be3 {[%clk 0:02:55]}  Ke6 {[%clk 0:02:39]} 18. O-O-O {[%clk 0:02:54]}  Rc8+ {[%clk 0:02:38]} 19. Kb1 {[%clk 0:02:53]}  Bc5 {[%clk 0:02:39]} 20. Rhe1 {[%clk 0:02:50]}  Bxe3 {[%clk 0:02:17]} 21. Rxe3+ {[%clk 0:02:51]}  Kd6 {[%clk 0:02:16]} 22. Rde1 {[%clk 0:02:50]}  Rc7 {[%clk 0:01:48]} 23. Re6+ {[%clk 0:02:44]}  Kd7 {[%clk 0:01:48]} 24. Re7+ {[%clk 0:02:34]}  Kd8 {[%clk 0:01:44]} 25. Rxc7 {[%clk 0:02:32]}  Kxc7 {[%clk 0:01:44]} 26. Re7+ {[%clk 0:02:32]}  Kb6 {[%clk 0:01:35]} 27. Rd7 {[%clk 0:02:23]}  Kc5 {[%clk 0:01:27]} 28. Rxg7 {[%clk 0:02:19]}  a5 {[%clk 0:01:23]} 29. Kc2 {[%clk 0:02:14]}  Re8 {[%clk 0:01:14]} 30. Kd2 {[%clk 0:02:08]}  Rb8 {[%clk 0:00:59]} 31. b3 {[%clk 0:02:06]}  a4 {[%clk 0:00:59]} 32. Rc7+ {[%clk 0:01:33]}  Kd4 {[%clk 0:00:59]} 33. Rc3 {[%clk 0:01:32]}  a3 {[%clk 0:00:41]} 34. Rc6 {[%clk 0:01:25]}  Rg8 {[%clk 0:00:36]} 35. Rxf6 {[%clk 0:01:14]}  Rg2 {[%clk 0:00:35]} 36. Rf4+ {[%clk 0:01:09]}  Ke5 {[%clk 0:00:25]} 37. Ke3 {[%clk 0:01:07]}  Rxh2 {[%clk 0:00:22]} 38. Ra4 {[%clk 0:01:07]}  Rh1 {[%clk 0:00:17]} 39. Rxa3 {[%clk 0:01:02]}  h5 {[%clk 0:00:17]} 40. f4+ {[%clk 0:00:56]}  Kf5 {[%clk 0:00:17]} 41. Ra5 {[%clk 0:00:57]}  Ke6 {[%clk 0:00:17]} 42. Ra6+ {[%clk 0:00:51]}  Kf5 {[%clk 0:00:16]} 43. Ra5 {[%clk 0:00:51]}  Ke6 {[%clk 0:00:15]} 44. Ra6+ {[%clk 0:00:48]}  Kf5 {[%clk 0:00:16]} 45. Rh6 {[%clk 0:00:48]}  h4 {[%clk 0:00:15]} 46. Rh5+ {[%clk 0:00:47]}  Ke6 {[%clk 0:00:13]} 47. Kd4 {[%clk 0:00:46]}  h3 {[%clk 0:00:10]} 48. Rh6+ {[%clk 0:00:41]}  Kf5 {[%clk 0:00:10]} 49. Kxd5 {[%clk 0:00:40]}  h2 {[%clk 0:00:10]} 50. a4 {[%clk 0:00:27]}  Rd1+ {[%clk 0:00:10]} 51. Kc5 {[%clk 0:00:20]}  h1=Q {[%clk 0:00:10]} 52. Rxh1 {[%clk 0:00:20]}  Rxh1 {[%clk 0:00:11]} 53. b4 {[%clk 0:00:20]}  Kxf4 {[%clk 0:00:11]} 54. a5 {[%clk 0:00:20]}  Ke5 {[%clk 0:00:11]} 55. Kc6 {[%clk 0:00:20]}  Rc1+ {[%clk 0:00:12]} 56. Kb6 {[%clk 0:00:19]}  Kd6 {[%clk 0:00:11]} 57. b5 {[%clk 0:00:19]}  Rc8 {[%clk 0:00:10]} 58. a6 {[%clk 0:00:19]}  Rb8+ {[%clk 0:00:10]} 59. Ka7 {[%clk 0:00:18]}  Rxb5 {[%clk 0:00:10]} 60. f4 {[%clk 0:00:18]}  Kc7 {[%clk 0:00:09]} 61. Ka8 {[%clk 0:00:15]}  Rb6 {[%clk 0:00:06]} 62. a7 {[%clk 0:00:16]}  Rf6 {[%clk 0:00:06]} 0-1


[Site "https://www.chess.com"]

[Event "Titled Tuesday Blitz March 28 Early 2023"]
[White "mjelcic"]
[Black "Nurmanova, Alua"]
[BlackFideId "13729390"]
[WhiteElo "2225"]
[BlackElo "2253"]
[Result "0-1"]
[Round "03"]
[TimeControl "180+2"]
[Date "2023.03.28"]
[WhiteClock "0:00:17"]
[BlackClock "0:01:12"]

1. e4 {[%clk 0:03:00]}  c5 {[%clk 0:02:59]} 2. c3 {[%clk 0:03:00]}  d5 {[%clk 0:02:58]} 3. exd5 {[%clk 0:03:00]}  Qxd5 {[%clk 0:02:59]} 4. d4 {[%clk 0:03:01]}  Nf6 {[%clk 0:02:59]} 5. Nf3 {[%clk 0:03:01]}  Bg4 {[%clk 0:02:58]} 6. Be2 {[%clk 0:03:01]}  e6 {[%clk 0:02:55]} 7. h3 {[%clk 0:03:00]}  Bh5 {[%clk 0:02:55]} 8. Be3 {[%clk 0:02:51]}  cxd4 {[%clk 0:02:51]} 9. cxd4 {[%clk 0:02:50]}  Nc6 {[%clk 0:02:41]} 10. Nc3 {[%clk 0:02:46]}  Bb4 {[%clk 0:02:41]} 11. O-O {[%clk 0:02:45]}  Qd6 {[%clk 0:02:40]} 12. Qb3 {[%clk 0:02:33]}  O-O {[%clk 0:02:37]} 13. Rfd1 {[%clk 0:02:28]}  Rfd8 {[%clk 0:02:33]} 14. a3 {[%clk 0:02:20]}  Ba5 {[%clk 0:02:32]} 15. Rac1 {[%clk 0:01:50]}  Qe7 {[%clk 0:02:28]} 16. g4 {[%clk 0:01:16]}  Bg6 {[%clk 0:02:27]} 17. Ne5 {[%clk 0:01:14]}  Rac8 {[%clk 0:02:12]} 18. Bf3 {[%clk 0:01:09]}  Bb6 {[%clk 0:02:01]} 19. Nxc6 {[%clk 0:01:06]}  bxc6 {[%clk 0:02:02]} 20. Na4 {[%clk 0:01:03]}  Nd5 {[%clk 0:01:57]} 21. Nc5 {[%clk 0:01:00]}  Bxc5 {[%clk 0:01:48]} 22. Rxc5 {[%clk 0:00:59]}  Rb8 {[%clk 0:01:49]} 23. Qa2 {[%clk 0:00:55]}  Qh4 {[%clk 0:01:35]} 24. Kg2 {[%clk 0:00:53]}  h5 {[%clk 0:01:19]} 25. b4 {[%clk 0:00:44]}  hxg4 {[%clk 0:01:13]} 26. hxg4 {[%clk 0:00:45]}  Nxe3+ {[%clk 0:01:12]} 27. fxe3 {[%clk 0:00:43]}  Be4 {[%clk 0:01:12]} 28. Qf2 {[%clk 0:00:17]}  Qxg4+ {[%clk 0:01:12]} 29. Qg3 {[%clk 0:00:17]}  Bxf3+ {[%clk 0:01:12]} 0-1


[Site "https://www.chess.com"]

[Event "Titled Tuesday Blitz March 28 Early 2023"]
[White "Quirke, Jeffrey"]
[Black "Jeet, Jain"]
[WhiteFideId "2013029"]
[BlackFideId "5073022"]
[WhiteElo "2223"]
[BlackElo "2067"]
[Result "0-1"]
[Round "03"]
[TimeControl "180+2"]
[Date "2023.03.28"]
[WhiteClock "0:00:02"]
[BlackClock "0:01:30"]

1. e4 {[%clk 0:02:55]}  c6 {[%clk 0:02:58]} 2. d4 {[%clk 0:02:54]}  d5 {[%clk 0:02:57]} 3. exd5 {[%clk 0:02:55]}  Qxd5 {[%clk 0:02:56]} 4. c4 {[%clk 0:02:47]}  Qa5+ {[%clk 0:02:55]} 5. Nc3 {[%clk 0:02:47]}  Nf6 {[%clk 0:02:55]} 6. Bd3 {[%clk 0:02:38]}  Bg4 {[%clk 0:02:54]} 7. Ne2 {[%clk 0:02:35]}  e6 {[%clk 0:02:54]} 8. O-O {[%clk 0:02:35]}  Be7 {[%clk 0:02:53]} 9. Qc2 {[%clk 0:02:27]}  O-O {[%clk 0:02:52]} 10. Ng3 {[%clk 0:02:16]}  Rd8 {[%clk 0:02:49]} 11. Be3 {[%clk 0:02:16]}  Bh5 {[%clk 0:02:45]} 12. Nxh5 {[%clk 0:02:15]}  Qxh5 {[%clk 0:02:46]} 13. h3 {[%clk 0:02:13]}  Nbd7 {[%clk 0:02:43]} 14. Rad1 {[%clk 0:02:07]}  Rac8 {[%clk 0:02:39]} 15. Rfe1 {[%clk 0:02:04]}  h6 {[%clk 0:02:31]} 16. Be2 {[%clk 0:02:04]}  Qa5 {[%clk 0:02:31]} 17. a3 {[%clk 0:02:01]}  Qc7 {[%clk 0:02:26]} 18. Bf3 {[%clk 0:01:55]}  Bd6 {[%clk 0:02:25]} 19. b4 {[%clk 0:01:51]}  Bf4 {[%clk 0:02:25]} 20. c5 {[%clk 0:01:44]}  Bxe3 {[%clk 0:02:25]} 21. fxe3 {[%clk 0:01:42]}  a5 {[%clk 0:02:17]} 22. e4 {[%clk 0:01:40]}  Ra8 {[%clk 0:02:14]} 23. e5 {[%clk 0:01:38]}  Nd5 {[%clk 0:02:11]} 24. Bxd5 {[%clk 0:01:34]}  exd5 {[%clk 0:02:11]} 25. b5 {[%clk 0:01:34]}  Nf8 {[%clk 0:02:10]} 26. b6 {[%clk 0:01:33]}  Qe7 {[%clk 0:02:10]} 27. Qd2 {[%clk 0:01:26]}  Ne6 {[%clk 0:02:10]} 28. Ne2 {[%clk 0:01:21]}  Qh4 {[%clk 0:02:07]} 29. Rf1 {[%clk 0:01:12]}  Rf8 {[%clk 0:02:07]} 30. Qe3 {[%clk 0:01:02]}  Rae8 {[%clk 0:02:03]} 31. Kh2 {[%clk 0:01:01]}  f6 {[%clk 0:01:54]} 32. g3 {[%clk 0:01:00]}  Qh5 {[%clk 0:01:51]} 33. g4 {[%clk 0:00:45]}  Qg6 {[%clk 0:01:45]} 34. exf6 {[%clk 0:00:25]}  Nxc5 {[%clk 0:01:44]} 35. f7+ {[%clk 0:00:24]}  Qxf7 {[%clk 0:01:41]} 36. Rxf7 {[%clk 0:00:18]}  Rxe3 {[%clk 0:01:41]} 37. Rxf8+ {[%clk 0:00:17]}  Kxf8 {[%clk 0:01:42]} 38. Nf4 {[%clk 0:00:05]}  Ne6 {[%clk 0:01:35]} 39. Nxe6+ {[%clk 0:00:03]}  Rxe6 {[%clk 0:01:35]} 40. Rf1+ {[%clk 0:00:02]}  Ke7 {[%clk 0:01:30]} 0-1


[Site "https://www.chess.com"]

[Event "Titled Tuesday Blitz March 28 Early 2023"]
[White "Dobre, Claudiu-Cristian"]
[Black "Ciuffoletti, Paolo"]
[WhiteFideId "1211854"]
[BlackFideId "807630"]
[WhiteElo "2207"]
[BlackElo "2143"]
[Result "1-0"]
[Round "03"]
[TimeControl "180+2"]
[Date "2023.03.28"]
[WhiteClock "0:00:16"]
[BlackClock "0:00:04"]

1. e4 {[%clk 0:03:00]}  c5 {[%clk 0:02:59]} 2. b3 {[%clk 0:03:00]}  d6 {[%clk 0:02:56]} 3. Bb5+ {[%clk 0:02:59]}  Nd7 {[%clk 0:02:53]} 4. Bb2 {[%clk 0:03:00]}  Nf6 {[%clk 0:02:51]} 5. Nc3 {[%clk 0:02:59]}  a6 {[%clk 0:02:36]} 6. Bxd7+ {[%clk 0:02:58]}  Bxd7 {[%clk 0:02:36]} 7. f4 {[%clk 0:02:59]}  e6 {[%clk 0:02:34]} 8. Nf3 {[%clk 0:02:33]}  Bc6 {[%clk 0:02:30]} 9. d3 {[%clk 0:02:32]}  Be7 {[%clk 0:02:28]} 10. O-O {[%clk 0:02:31]}  O-O {[%clk 0:02:24]} 11. Kh1 {[%clk 0:02:27]}  Nd7 {[%clk 0:02:19]} 12. d4 {[%clk 0:02:20]}  d5 {[%clk 0:02:05]} 13. exd5 {[%clk 0:02:18]}  exd5 {[%clk 0:02:01]} 14. dxc5 {[%clk 0:02:05]}  Nxc5 {[%clk 0:01:46]} 15. Nd4 {[%clk 0:01:51]}  Bf6 {[%clk 0:01:36]} 16. Ba3 {[%clk 0:01:04]}  Qa5 {[%clk 0:01:12]} 17. Nxc6 {[%clk 0:00:21]}  Qxa3 {[%clk 0:00:37]} 18. Nxd5 {[%clk 0:00:20]}  Bxa1 {[%clk 0:00:11]} 19. Nce7+ {[%clk 0:00:19]}  Kh8 {[%clk 0:00:10]} 20. Qxa1 {[%clk 0:00:19]}  Ne4 {[%clk 0:00:05]} 21. Nf5 {[%clk 0:00:18]}  f6 {[%clk 0:00:05]} 22. Qd4 {[%clk 0:00:17]}  Rae8 {[%clk 0:00:04]} 23. Nc7 {[%clk 0:00:16]} 1-0


[Site "https://www.chess.com"]